fUSD/lending_fUSD_20250208
["ID","MTS","AMOUNT","RATE_DAILY","PERIOD"]
[352323715,1739041847933,-500.0,0.00010546,2]
[352323716,1739041847943,-500.0,0.00010546,2]
[352323717,1739041847952,-500.0,0.00010546,2]
[352323718,1739041847965,-755.6,0.00010546,2]
[352323719,1739041847974,-500.0,0.00010546,2]
[352323720,1739041847984,-682.72,0.00010546,2]
[352323721,1739041847994,-500.0,0.00010546,2]
[352323722,1739041848005,-500.0,0.00010546,2]
[352323723,1739041848014,-953.35,0.00010546,2]
[352323724,1739041848023,-500.0,0.00010546,2]
[352323725,1739041848032,-500.0,0.00010546,2]
[352323726,1739041848043,-607.9,0.00010546,2]
[352323727,1739041848053,-500.0,0.00010546,2]
[352323728,1739041848064,-626.23,0.00010546,2]
[352323729,1739041848074,-500.0,0.00010546,2]
[352323730,1739041848084,-500.0,0.00010546,2]
[352323731,1739041848093,-500.0,0.00010546,2]
[352323732,1739041848104,-500.0,0.00010546,2]
[352323733,1739041848114,-500.0,0.00010546,2]
[352323734,1739041848125,-568.76,0.00010546,2]
[352323735,1739041848135,-607.91,0.00010546,2]
[352323736,1739041848144,-500.0,0.00010546,2]
[352323737,1739041848154,-500.0,0.00010546,2]
[352323738,1739041848164,-500.0,0.00010546,2]
[352323739,1739041848173,-802.19,0.00010546,2]
[352323740,1739041848183,-500.0,0.00010546,2]
[352323741,1739041848193,-500.0,0.00010546,2]
[352323742,1739041848203,-500.0,0.00010546,2]
[352323743,1739041848213,-500.0,0.00010546,2]
[352323744,1739041848275,-699.68,0.00010546,2]
[352323745,1739041848286,-500.0,0.00010546,2]
[352323746,1739041848296,-500.0,0.00010546,2]
[352323748,1739041848306,-500.0,0.00010546,2]
[352323749,1739041848316,-500.0,0.00010546,2]
[352323751,1739041848326,-500.0,0.00010546,2]
[352323752,1739041848337,-832.98,0.00010546,2]
[352323754,1739041848348,-500.0,0.00010546,2]
[352323756,1739041848358,-500.0,0.00010546,2]
[352323758,1739041848369,-500.0,0.00010546,2]
[352323760,1739041848379,-500.0,0.00010546,2]
[352323761,1739041848389,-500.0,0.00010546,2]
[352323762,1739041848400,-500.0,0.00010546,2]
[352323763,1739041848410,-500.0,0.00010546,2]
[352323764,1739041848420,-500.0,0.00010546,2]
[352323765,1739041848430,-724.77,0.00010546,2]
[352323766,1739041848439,-500.0,0.00010546,2]
[352323767,1739041848450,-500.0,0.00010546,2]
[352323768,1739041848460,-500.0,0.00010546,2]
[352323769,1739041848470,-500.0,0.00010546,2]
[352323770,1739041848480,-500.0,0.00010546,2]
[352323771,1739041848490,-500.0,0.00010546,2]
[352323772,1739041848500,-500.0,0.00010546,2]
[352323773,1739041848509,-500.0,0.00010546,2]
[352323774,1739041848519,-500.0,0.00010546,2]
[352323775,1739041848529,-500.0,0.00010546,2]
[352323776,1739041848538,-562.04,0.00010546,2]
[352323777,1739041848548,-500.0,0.00010546,2]
[352323778,1739041848558,-500.0,0.00010546,2]
[352323779,1739041848569,-500.0,0.00010546,2]
[352323780,1739041848578,-500.0,0.00010546,2]
[352323781,1739041848588,-825.35,0.00010546,2]
[352323782,1739041848598,-500.0,0.00010546,2]
[352323783,1739041848609,-500.0,0.00010546,2]
[352323784,1739041848619,-575.79,0.00010546,2]
[352323785,1739041848629,-746.93,0.00010546,2]
[352323786,1739041848639,-500.0,0.00010546,2]
[352323787,1739041848649,-677.28,0.00010546,2]
[352323788,1739041848660,-500.0,0.00010546,2]
[352323789,1739041848669,-500.0,0.00010546,2]
[352323790,1739041848679,-770.06,0.00010546,2]
[352323791,1739041848689,-500.0,0.00010546,2]
[352323792,1739041848698,-546.94,0.00010546,2]
[352323793,1739041848709,-726.9,0.00010546,2]
[352323794,1739041848719,-500.0,0.00010546,2]
[352323795,1739041848730,-500.0,0.00010546,2]
[352323796,1739041848740,-500.0,0.00010546,2]
[352323797,1739041848751,-911.33,0.00010546,2]
[352323798,1739041848761,-500.0,0.00010546,2]
[352323799,1739041848770,-500.0,0.00010546,2]
[352323800,1739041848780,-500.0,0.00010546,2]
[352323801,1739041848790,-500.0,0.00010546,2]
[352323802,1739041848800,-500.0,0.00010546,2]
[352323803,1739041848810,-766.94,0.00010546,2]
[352323804,1739041848820,-576.16,0.00010546,2]
[352323805,1739041848831,-500.0,0.00010546,2]
[352323806,1739041848841,-500.0,0.00010546,2]
[352323807,1739041848850,-500.0,0.00010546,2]
[352323808,1739041848860,-500.0,0.00010546,2]
[352323809,1739041848869,-500.0,0.00010546,2]
[352323810,1739041848878,-500.0,0.00010546,2]
[352323811,1739041848888,-500.0,0.00010546,2]
[352323812,1739041848897,-500.0,0.00010546,2]
[352323813,1739041848907,-655.03,0.00010546,2]
[352323814,1739041848916,-500.0,0.00010546,2]
[352323815,1739041848926,-500.0,0.00010546,2]
[352323816,1739041848935,-805.15,0.00010546,2]
[352323817,1739041848946,-727.47,0.00010546,2]
[352323818,1739041848957,-500.0,0.00010546,2]
[352323819,1739041848968,-670.05,0.00010546,2]
[352323820,1739041848977,-946.41,0.00010546,2]
[352323821,1739041848987,-500.0,0.00010546,2]
[352323822,1739041848996,-500.0,0.00010546,2]
[352323823,1739041849006,-500.0,0.00010546,2]
[352323824,1739041849015,-500.0,0.00010546,2]
[352323825,1739041849024,-820.27,0.00010546,2]
[352323826,1739041849035,-500.0,0.00010546,2]
[352323827,1739041849044,-633.59,0.00010546,2]
[352323828,1739041849053,-500.0,0.00010546,2]
[352323829,1739041849062,-500.0,0.00010546,2]
[352323830,1739041849071,-717.44,0.00010546,2]
[352323831,1739041849081,-500.0,0.00010546,2]
[352323832,1739041849090,-696.37,0.00010546,2]
[352323833,1739041849099,-581.49,0.00010546,2]
[352323834,1739041849108,-500.0,0.00010546,2]
[352323835,1739041849118,-500.0,0.00010546,2]
[352323836,1739041849128,-828.97,0.00010546,2]
[352323837,1739041849138,-500.0,0.00010546,2]
[352323838,1739041849148,-500.0,0.00010546,2]
[352323839,1739041849158,-500.0,0.00010546,2]
[352323840,1739041849167,-500.0,0.00010546,2]
[352323841,1739041849176,-500.0,0.00010546,2]
[352323842,1739041849185,-500.0,0.00010546,2]
[352323843,1739041849195,-331.92552731,0.00010546,2]
[352323844,1739041849205,-500.0,0.00010546,2]
[352323845,1739041849214,-984.83,0.00010546,2]
[352323846,1739041849224,-500.0,0.00010546,2]
[352323847,1739041849233,-500.0,0.00010546,2]
[352323848,1739041849242,-500.0,0.00010546,2]
[352323849,1739041849251,-713.91,0.00010546,2]
[352323850,1739041849261,-500.0,0.00010546,2]
[352323851,1739041849270,-500.0,0.00010546,2]
[352323852,1739041849279,-1784.84,0.00010546,2]
[352323853,1739041849288,-500.0,0.00010546,2]
[352323854,1739041849297,-500.0,0.00010546,2]
[352323855,1739041849306,-732.41,0.00010546,2]
[352323856,1739041849315,-1154.36,0.00010546,2]
[352323857,1739041849324,-500.0,0.00010546,2]
[352323858,1739041849333,-981.42,0.00010546,2]
[352323859,1739041849342,-500.0,0.00010546,2]
[352323860,1739041849351,-500.0,0.00010546,2]
[352323861,1739041849360,-1063.64,0.00010546,2]
[352323862,1739041849369,-500.0,0.00010546,2]
[352323863,1739041849379,-500.0,0.00010546,2]
[352323864,1739041849388,-529.33,0.00010546,2]
[352323865,1739041849398,-693.99,0.00010546,2]
[352323866,1739041849407,-544.1,0.00010546,2]
[352323867,1739041849416,-942.44,0.00010546,2]
[352323868,1739041849425,-500.0,0.00010546,2]
[352323869,1739041849434,-500.0,0.00010546,2]
[352323870,1739041849442,-641.06,0.00010546,2]
[352323871,1739041849451,-938.67,0.00010546,2]
[352323872,1739041849461,-799.99,0.00010546,2]
[352323873,1739041849470,-1324.41,0.00010546,2]
[352323874,1739041849479,-500.0,0.00010546,2]
[352323875,1739041849488,-1438.25,0.00010546,2]
[352323876,1739041849497,-500.0,0.00010546,2]
[352323877,1739041849506,-2852.49,0.00010546,2]
[352323878,1739041849516,-500.0,0.00010546,2]
[352323879,1739041849525,-500.0,0.00010546,2]
[352323880,1739041849534,-862.91,0.00010546,2]
[352323881,1739041849544,-151.17,0.00010546,2]
[352323882,1739041849553,-718.25,0.00010546,2]
[352323883,1739041849562,-3726.95,0.00010546,2]
[352323884,1739041849571,-918.03,0.00010546,2]
[352323885,1739041849581,-500.0,0.00010546,2]
[352323886,1739041849590,-500.0,0.00010546,2]
[352323887,1739041849599,-899.65,0.00010546,2]
[352323888,1739041849609,-500.0,0.00010546,2]
[352323889,1739041849618,-1258.64,0.00010546,2]
[352323890,1739041849627,-500.0,0.00010546,2]
[352323891,1739041849637,-500.0,0.00010546,2]
[352323892,1739041849647,-500.0,0.00010546,2]
[352323893,1739041849657,-982.29,0.00010546,2]
[352323894,1739041849666,-500.0,0.00010546,2]
[352323895,1739041849676,-641.41,0.00010546,2]
[352323896,1739041849685,-500.0,0.00010546,2]
[352323897,1739041849695,-500.0,0.00010546,2]
[352323898,1739041849705,-2158.87,0.00010546,2]
[352323899,1739041849714,-1087.78,0.00010546,2]
[352323900,1739041849724,-500.0,0.00010546,2]
[352323901,1739041849734,-500.0,0.00010546,2]
[352323902,1739041849743,-500.0,0.00010546,2]
[352323903,1739041849752,-819.14,0.00010546,2]
[352323904,1739041849762,-787.63,0.00010546,2]
[352323905,1739041849771,-318.39631237,0.00010546,2]
[352323906,1739041849781,-500.0,0.00010546,2]
[352323907,1739041849790,-1160.92,0.00010546,2]
[352323908,1739041849799,-757.74,0.00010546,2]
[352323909,1739041849808,-500.0,0.00010546,2]
[352323910,1739041849817,-164.74296781,0.00010546,2]
[352323911,1739041849827,-500.0,0.00010546,2]
[352323912,1739041849836,-500.0,0.00010546,2]
[352323913,1739041849844,-728.73,0.00010546,2]
[352323914,1739041849854,-1062.52,0.00010546,2]
[352323915,1739041849863,-500.0,0.00010546,2]
[352323916,1739041849872,-1173.18,0.00010546,2]
[352323917,1739041849882,-500.0,0.00010546,2]
[352323918,1739041849892,-500.0,0.00010546,2]
[352323919,1739041849900,-947.54,0.00010546,2]
[352323920,1739041849910,-500.0,0.00010546,2]
[352323921,1739041849919,-500.0,0.00010546,2]
[352323922,1739041849928,-1164.89,0.00010546,2]
[352323923,1739041849937,-500.0,0.00010546,2]
[352323924,1739041849946,-1362.95,0.00010546,2]
[352323925,1739041849957,-2062.09,0.00010546,2]
[352323926,1739041849967,-500.0,0.00010546,2]
[352323927,1739041849976,-500.0,0.00010546,2]
[352323928,1739041849985,-500.0,0.00010546,2]
[352323929,1739041849994,-500.0,0.00010546,2]
[352323930,1739041850005,-822.0,0.00010546,2]
[352323931,1739041850014,-1631.6,0.00010546,2]
[352323932,1739041850023,-849.24,0.00010546,2]
[352323933,1739041850033,-1223.38,0.00010546,2]
[352323934,1739041850044,-833.26,0.00010546,2]
[352323935,1739041850054,-500.0,0.00010546,2]
[352323936,1739041850063,-1084.39,0.00010546,2]
[352323938,1739041850073,-1273.56,0.00010546,2]
[352323940,1739041850082,-500.0,0.00010546,2]
[352323942,1739041850091,-500.0,0.00010546,2]
[352323944,1739041850100,-1364.9,0.00010546,2]
[352323946,1739041850109,-500.0,0.00010546,2]
[352323948,1739041850119,-753.44,0.00010546,2]
[352323950,1739041850127,-500.0,0.00010546,2]
[352323952,1739041850136,-500.0,0.00010546,2]
[352323954,1739041850146,-1667.12,0.00010546,2]
[352323956,1739041850155,-601.2,0.00010546,2]
[352323958,1739041850164,-1121.99,0.00010546,2]
[352323960,1739041850173,-500.0,0.00010546,2]
[352323962,1739041850182,-1552.54,0.00010546,2]
[352323964,1739041850191,-500.0,0.00010546,2]
[352323966,1739041850201,-781.18,0.00010546,2]
[352323968,1739041850212,-1873.33,0.00010546,2]
[352323970,1739041850221,-771.32,0.00010546,2]
[352323972,1739041850231,-872.77,0.00010546,2]
[352323974,1739041850240,-793.82,0.00010546,2]
[352323976,1739041850249,-1136.25,0.00010546,2]
[352323978,1739041850258,-500.0,0.00010546,2]
[352323980,1739041850267,-500.0,0.00010546,2]
[352323982,1739041850276,-1589.05,0.00010546,2]
[352323984,1739041850286,-500.0,0.00010546,2]
[352323986,1739041850295,-1682.64,0.00010546,2]
[352323988,1739041850304,-869.04,0.00010546,2]
[352323990,1739041850313,-1111.36,0.00010546,2]
[352323992,1739041850322,-500.0,0.00010546,2]
[352323994,1739041850332,-1760.96,0.00010546,2]
[352323996,1739041850341,-500.0,0.00010546,2]
[352323998,1739041850350,-1358.09,0.00010546,2]
[352324000,1739041850359,-2598.74,0.00010546,2]
[352324002,1739041850368,-500.0,0.00010546,2]
[352324004,1739041850377,-3618.91,0.00010546,2]
[352324006,1739041850387,-1540.41,0.00010546,2]
[352324008,1739041850396,-934.7,0.00010546,2]
[352324010,1739041850405,-812.95,0.00010546,2]
[352324012,1739041850414,-1255.84,0.00010546,2]
[352324014,1739041850423,-500.0,0.00010546,2]
[352324015,1739041850432,-500.0,0.00010546,2]
[352324016,1739041850442,-602.7,0.00010546,2]
[352324017,1739041850451,-1000.0,0.00010546,2]
[352324018,1739041850461,-827.08,0.00010546,2]
[352324019,1739041850470,-1125.11,0.00010546,2]
[352324020,1739041850478,-500.0,0.00010546,2]
[352324021,1739041850487,-500.0,0.00010546,2]
[352324022,1739041850496,-963.9,0.00010546,2]
[352324023,1739041850507,-812.45,0.00010546,2]
[352324024,1739041850516,-1464.68,0.00010546,2]
[352324025,1739041850526,-1352.76,0.00010546,2]
[352324026,1739041850535,-915.85,0.00010546,2]
[352324027,1739041850544,-500.0,0.00010546,2]
[352324028,1739041850553,-500.0,0.00010546,2]
[352324029,1739041850563,-500.0,0.00010546,2]
[352324030,1739041850572,-903.69,0.00010546,2]
[352324031,1739041850582,-500.0,0.00010546,2]
[352324032,1739041850592,-566.99,0.00010546,2]
[352324033,1739041850601,-500.0,0.00010546,2]
[352324034,1739041850610,-1519.31,0.00010546,2]
[352324035,1739041850620,-1497.88,0.00010546,2]
[352324036,1739041850630,-888.46,0.00010546,2]
[352324037,1739041850639,-1132.9,0.00010546,2]
[352324038,1739041850649,-812.47,0.00010546,2]
[352324039,1739041850658,-983.35,0.00010546,2]
[352324040,1739041850667,-635.74,0.00010546,2]
[352324041,1739041850676,-799.42,0.00010546,2]
[352324042,1739041850685,-500.0,0.00010546,2]
[352324043,1739041850695,-1296.49,0.00010546,2]
[352324044,1739041850704,-906.39,0.00010546,2]
[352324045,1739041850714,-2243.06,0.00010546,2]
[352324046,1739041850723,-500.0,0.00010546,2]
[352324047,1739041850732,-1223.25,0.00010546,2]
[352324048,1739041850742,-530.97,0.00010546,2]
[352324049,1739041850751,-500.0,0.00010546,2]
[352324050,1739041850760,-500.0,0.00010546,2]
[352324051,1739041850769,-500.0,0.00010546,2]
[352324052,1739041850779,-1053.46,0.00010546,2]
[352324053,1739041850788,-500.0,0.00010546,2]
[352324054,1739041850798,-1194.18,0.00010546,2]
[352324055,1739041850807,-598.45,0.00010546,2]
[352324056,1739041850816,-500.0,0.00010546,2]
[352324057,1739041850826,-1329.1,0.00010546,2]
[352324058,1739041850835,-594.78,0.00010546,2]
[352324059,1739041850844,-527.65,0.00010546,2]
[352324060,1739041850854,-578.09,0.00010546,2]
[352324061,1739041850864,-500.0,0.00010546,2]
[352324062,1739041850873,-500.0,0.00010546,2]
[352324063,1739041850883,-500.0,0.00010546,2]
[352324064,1739041850892,-2009.37,0.00010546,2]
[352324065,1739041850903,-1091.84,0.00010546,2]
[352324066,1739041850912,-500.0,0.00010546,2]
[352324067,1739041850922,-1193.02,0.00010546,2]
[352324068,1739041850930,-1468.04049637,0.00010583,2]
[352324069,1739041850940,-1000.0,0.00010679,2]
[352324070,1739041850950,-500.0,0.00010683,2]
[352324071,1739041850962,-500.0,0.00010683,2]
[352324072,1739041850971,-500.0,0.00010683,2]
[352324073,1739041850980,-500.0,0.00010683,2]
[352324074,1739041850989,-500.0,0.00010683,2]
[352324075,1739041850999,-669.64,0.00010683,2]
[352324076,1739041851008,-500.0,0.00010683,2]
[352324077,1739041851018,-500.0,0.00010683,2]
[352324078,1739041851027,-529.46,0.00010683,2]
[352324079,1739041851039,-500.0,0.00010683,2]
[352324080,1739041851048,-500.0,0.00010683,2]
[352324081,1739041851058,-500.0,0.00010683,2]
[352324082,1739041851068,-533.71467024,0.00010683,2]
[352324083,1739041851079,-500.0,0.00010683,2]
[352324084,1739041851089,-500.0,0.00010683,2]
[352324085,1739041851098,-790.785821,0.00010683,2]
[352324086,1739041851107,-500.0,0.00010683,2]
[352324087,1739041851119,-500.0,0.00010683,2]
[352324088,1739041851129,-500.0,0.00010683,2]
[352324089,1739041851138,-500.0,0.00010683,2]
[352324090,1739041851147,-500.0,0.00010683,2]
[352324091,1739041851156,-1033.25,0.00010683,2]
[352324092,1739041851166,-500.0,0.00010683,2]
[352324093,1739041851175,-500.0,0.00010683,2]
[352324094,1739041851184,-500.0,0.00010683,2]
[352324095,1739041851193,-615.85,0.00010683,2]
[352324096,1739041851203,-500.0,0.00010683,2]
[352324097,1739041851213,-500.0,0.00010683,2]
[352324098,1739041851222,-500.0,0.00010683,2]
[352324099,1739041851232,-500.0,0.00010683,2]
[352324100,1739041851243,-500.0,0.00010683,2]
[352324101,1739041851253,-617.29,0.00010683,2]
[352324102,1739041851263,-500.0,0.00010683,2]
[352324103,1739041851272,-603.44,0.00010683,2]
[352324104,1739041851281,-728.319056,0.00010683,2]
[352324105,1739041851291,-500.0,0.00010683,2]
[352324106,1739041851300,-500.0,0.00010683,2]
[352324107,1739041851309,-799.92,0.00010683,2]
[352324108,1739041851319,-814.03,0.00010683,2]
[352324109,1739041851328,-500.0,0.00010683,2]
[352324110,1739041851337,-737.69,0.00010683,2]
[352324111,1739041851346,-500.0,0.00010683,2]
[352324112,1739041851357,-761.06,0.00010683,2]
[352324113,1739041851367,-914.41,0.00010683,2]
[352324114,1739041851377,-747.91,0.00010683,2]
[352324115,1739041851386,-500.0,0.00010683,2]
[352324116,1739041851398,-710.32,0.00010683,2]
[352324117,1739041851407,-500.0,0.00010683,2]
[352324118,1739041851417,-500.0,0.00010683,2]
[352324119,1739041851426,-500.0,0.00010683,2]
[352324120,1739041851435,-500.0,0.00010683,2]
[352324121,1739041851444,-418.51371735,0.00010683,2]
[352324122,1739041851782,-337.08628265,0.00010683,2]
[352324123,1739041851793,-500.0,0.00010683,2]
[352324124,1739041851804,-682.72,0.00010683,2]
[352324125,1739041851814,-500.0,0.00010683,2]
[352324126,1739041851823,-500.0,0.00010683,2]
[352324127,1739041851833,-953.35,0.00010683,2]
[352324128,1739041851842,-500.0,0.00010683,2]
[352324129,1739041851852,-500.0,0.00010683,2]
[352324130,1739041851861,-607.9,0.00010683,2]
[352324131,1739041851871,-348.30998053,0.00010683,2]
[352324132,1739041851895,-151.69001947,0.00010683,2]
[352324133,1739041851905,-626.23,0.00010683,2]
[352324134,1739041851915,-500.0,0.00010683,2]
[352324135,1739041851924,-500.0,0.00010683,2]
[352324136,1739041851934,-500.0,0.00010683,2]
[352324137,1739041851943,-500.0,0.00010683,2]
[352324138,1739041851953,-526.63354731,0.00010683,2]
[352324139,1739041851966,-568.76,0.00010683,2]
[352324140,1739041851976,-607.91,0.00010683,2]
[352324141,1739041851986,-500.0,0.00010683,2]
[352324142,1739041851996,-500.0,0.00010683,2]
[352324143,1739041852007,-802.19,0.00010683,2]
[352324144,1739041852018,-500.0,0.00010683,2]
[352324145,1739041852029,-500.0,0.00010683,2]
[352324146,1739041852041,-500.0,0.00010683,2]
[352324147,1739041852052,-500.0,0.00010683,2]
[352324148,1739041852064,-699.68,0.00010683,2]
[352324149,1739041852074,-500.0,0.00010683,2]
[352324150,1739041852084,-500.0,0.00010683,2]
[352324151,1739041852094,-500.0,0.00010683,2]
[352324152,1739041852103,-500.0,0.00010683,2]
[352324153,1739041852113,-500.0,0.00010683,2]
[352324154,1739041852122,-832.98,0.00010683,2]
[352324155,1739041852132,-500.0,0.00010683,2]
[352324156,1739041852142,-500.0,0.00010683,2]
[352324157,1739041852152,-528.4,0.00010683,2]
[352324158,1739041852162,-500.0,0.00010683,2]
[352324159,1739041852172,-500.0,0.00010683,2]
[352324160,1739041852182,-500.0,0.00010683,2]
[352324161,1739041852192,-500.0,0.00010683,2]
[352324162,1739041852202,-500.0,0.00010683,2]
[352324163,1739041852212,-724.77,0.00010683,2]
[352324164,1739041852222,-500.0,0.00010683,2]
[352324165,1739041852232,-500.0,0.00010683,2]
[352324166,1739041852242,-500.0,0.00010683,2]
[352324167,1739041852251,-500.0,0.00010683,2]
[352324168,1739041852262,-500.0,0.00010683,2]
[352324169,1739041852272,-500.0,0.00010683,2]
[352324170,1739041852282,-500.0,0.00010683,2]
[352324171,1739041852292,-500.0,0.00010683,2]
[352324172,1739041852302,-500.0,0.00010683,2]
[352324173,1739041852311,-500.0,0.00010683,2]
[352324174,1739041852321,-562.04,0.00010683,2]
[352324175,1739041852333,-289.57241981,0.00010683,2]
[352324176,1739041852342,-500.0,0.00010683,2]
[352324177,1739041852352,-500.0,0.00010683,2]
[352324178,1739041852361,-175.11135289,0.00010683,2]
[352324179,1739041852374,-324.88864711,0.00010683,2]
[352324180,1739041852384,-68.15533375,0.00010683,2]
[352324181,1739041852404,-591.9352238,0.00010683,2]
[352324182,1739041852416,-165.25944245,0.00010683,2]
[352324183,1739041852428,-500.0,0.00010683,2]
[352324184,1739041852439,-136.65335755,0.00010683,2]
[352324185,1739041853830,-718.23,0.00010135,2]
[352324186,1739041853840,-507.04939696,0.00010135,2]
[352324187,1739041853849,-500.0,0.00010135,2]
[352324188,1739041853859,-500.0,0.00010135,2]
[352324189,1739041853868,-500.0,0.00010135,2]
[352324190,1739041853878,-500.0,0.00010135,2]
[352324191,1739041853887,-718.23,0.00010272,2]
[352324192,1739041853897,-500.0,0.00010272,2]
[352324193,1739041853907,-500.0,0.00010272,2]
[352324194,1739041853916,-500.0,0.00010272,2]
[352324195,1739041853926,-500.0,0.00010272,2]
[352324196,1739041853936,-315.10656384,0.00010409,2]
[352324197,1739041853949,-184.89343616,0.00010409,2]
[352324198,1739041853960,-679.26309013,0.00010409,2]
[352324199,1739041853972,-38.96690987,0.00010409,2]
[352324200,1739041853981,-500.0,0.00010409,2]
[352324201,1739041853991,-500.0,0.00010409,2]
[352324202,1739041854000,-420.47309013,0.00010409,2]
[352324203,1739041854013,-79.52690987,0.00010409,2]
[352324204,1739041854023,-500.0,0.00010546,2]
[352324205,1739041854033,-718.23,0.00010546,2]
[352324206,1739041854042,-276.15152822,0.00010546,2]
[352324207,1739041854052,-500.0,0.00010546,2]
[352324208,1739041854062,-363.34664245,0.00010683,2]
[352324209,1739041854071,-575.79,0.00010683,2]
[352324210,1739041854081,-746.93,0.00010683,2]
[352324211,1739041854090,-500.0,0.00010683,2]
[352324212,1739041854101,-677.28,0.00010683,2]
[352324213,1739041854110,-500.0,0.00010683,2]
[352324214,1739041854119,-500.0,0.00010683,2]
[352324215,1739041854129,-770.06,0.00010683,2]
[352324216,1739041854139,-546.94,0.00010683,2]
[352324217,1739041854148,-564.50149687,0.00010683,2]
[352324218,1739041854161,-162.39850313,0.00010683,2]
[352324219,1739041854170,-124.48702725,0.00010683,2]
[352324220,1739041854182,-375.51297275,0.00010683,2]
[352324221,1739041854192,-382.07944154,0.00010683,2]
[352324222,1739041854201,-911.33,0.00010683,2]
[352324223,1739041854211,-256.52758571,0.00010683,2]
[352324224,1739041854223,-243.47241429,0.00010683,2]
[352324225,1739041854232,-500.0,0.00010683,2]
[352324226,1739041854242,-500.0,0.00010683,2]
[352324227,1739041854252,-766.94,0.00010683,2]
[352324228,1739041854261,-576.16,0.00010683,2]
[352324229,1739041854271,-45.20368859,0.00010683,2]
[352324230,1739041854301,-500.0,0.00010409,2]
[352324231,1739041854311,-454.79631141,0.00010683,2]
[352324232,1739041854321,-500.0,0.00010683,2]
[352324233,1739041854330,-500.0,0.00010683,2]
[352324234,1739041854340,-518.71,0.00010683,2]
[352324235,1739041854350,-500.0,0.00010683,2]
[352324236,1739041854360,-500.0,0.00010683,2]
[352324237,1739041854370,-655.03,0.00010683,2]
[352324238,1739041854379,-500.0,0.00010683,2]
[352324239,1739041854389,-332.04776466,0.00010683,2]
[352324240,1739041854402,-167.95223534,0.00010683,2]
[352324241,1739041854411,-190.3826163,0.00010683,2]
[352324242,1739041854424,-614.7673837,0.00010683,2]
[352324243,1739041854434,-727.47,0.00010683,2]
[352324244,1739041854443,-500.0,0.00010683,2]
[352324245,1739041854453,-670.05,0.00010683,2]
[352324246,1739041854463,-946.41,0.00010683,2]
[352324247,1739041854472,-500.0,0.00010683,2]
[352324248,1739041854481,-500.0,0.00010683,2]
[352324249,1739041854491,-820.27,0.00010683,2]
[352324250,1739041854502,-500.0,0.00010683,2]
[352324251,1739041854520,-500.0,0.00010683,2]
[352324252,1739041854529,-717.44,0.00010683,2]
[352324253,1739041854539,-500.0,0.00010683,2]
[352324254,1739041854548,-696.37,0.00010683,2]
[352324255,1739041854557,-500.0,0.00010683,2]
[352324256,1739041854567,-828.97,0.00010683,2]
[352324257,1739041854576,-500.0,0.00010683,2]
[352324258,1739041854586,-500.0,0.00010683,2]
[352324259,1739041854595,-386.01304659,0.00010683,2]